Cogmind - Beta 16.1 @@@ ROGUE MODE // 2026.05.02 @ 19:27:59 Player: Peanut Result: Destroyed by Y-45 Defender with Heavy Assault Rifle Performance ------------- Evolutions (2) 1000 Regions Visited (12) 2400 Robots Destroyed (207) 1035 Value Destroyed (8933) 8933 Prototype IDs (43) 860 Alien Tech Used (0) 0 Bonus (4328) 4328 TOTAL SCORE: 18556 Bonus ------- High Alert Combat Kills 1739 Follower Combat Kills 689 Entered Garrisons 600 Used RIF Installer 1000 Aligned with FarCom 300 Cogmind --------- Core Integrity 0/550 Matter 273/300 Energy 283/290 System Corruption 7% Temperature Cool (9) Movement Rolling (170) Ox6 Location -8/Garrison Parts ------- > --- POWER (1) -------- Reinforced Deuterium Engine > --- PROPULSION (3) --- Armored Treads (fused) Armored Treads Armored Wheel > --- UTILITY (4) ------ Improved Cooling System High-capacity Storage Unit Seismic Detector Experimental Targeting Computer > --- WEAPON (3) ------- Coil Gun Coil Gun Coil Gun > --- INVENTORY (20) --- Armored Treads Armored Huge Wheel Relay Coupler [NC] (37) Relay Coupler [NC] (33) Relay Coupler [NC] (31) Relay Coupler [Grunt] (35) Relay Coupler [Sentry] (28) Relay Coupler [Behemoth] (14) System Purifier AS-neutralizer No. 17b Proton Cannon Latent Energy Streamer Gauss Rifle Heavy Rocket Launcher Remote Datajack Field Lobotomy Kit (5) Plasma Cutter Deploy-a-Sentry Deploy-a-Sentry Peak State ------------ > --- POWER ------------ Reinforced Ion Engine > --- PROPULSION ------- Carbon-fiber Leg Advanced Myomer Leg Advanced Myomer Leg > --- UTILITY ---------- Advanced Heat Sink High-capacity Storage Unit Advanced Weapon Cycler Improved Light Armor Plating > --- WEAPON ----------- Heavy Assault Rifle High-powered Shotgun Gauss Rifle > --- INVENTORY -------- Light Treads Improved Treads Improved Treads Advanced Treads Armored Wheel Armored Wheel Improved Heat Sink Experimental Heat Sink Seismic Detector Experimental Targeting Computer System Purifier AS-neutralizer No. 17b Latent Energy Streamer Mini Grenade Launcher Field Lobotomy Kit Plasma Cutter Deploy-a-Sentry Deploy-a-Sentry Deploy-a-Sentry Deploy-a-Sentry [Rating: 56] Favorites ----------- Power Heavy Ion Engine Engine Heavy Ion Engine Power Core Fission Core Propulsion Light Treads Treads Light Treads Leg Advanced Myomer Leg Wheel Armored Wheel Utility High-capacity Storage Unit Device Seismic Detector Storage High-capacity Storage Unit Processor Experimental Targeting Computer Hackware Relay Coupler [Grunt] Protection Light Armor Plating Weapon Heavy Assault Rifle Energy Gun Plasma Rifle Energy Cannon Beam Cannon Ballistic Gun Heavy Assault Rifle Ballistic Cannon Light Cannon Launcher Mini Grenade Launcher Special Weapon Remote Datajack Special Melee Weapon Datajack Build | -11 -10 -10 -9 -9 -9 -8 -8 -8 -8 -8 -8 -8 ------- Run | Yrd Mat Min Mat Min Exi Min Mat Gar Mat Gar Mat Gar Slots Evolved 4 | . . . 2 . . . 2 . . . . . Power . | . . . . . . . . . . . . . Propulsion 1 | . . . 1 . . . . . . . . . Utility 2 | . . . . . . . 2 . . . . . Weapon 1 | . . . 1 . . . . . . . . . Parts Attached 139 | 8 9 2 32 1 14 2 11 12 1 26 12 9 Power 12 | 1 2 . 3 . 1 . 1 1 . 2 1 . Engine 11 | 1 2 . 3 . 1 . 1 . . 2 1 . Core 1 | . . . . . . . . 1 . . . . Reactor . | . . . . . . . . . . . . . Propulsion 43 | 2 1 . 12 . 5 1 4 3 1 9 4 1 Treads 33 | 2 . . 10 . 5 . . 3 1 8 3 1 Leg 4 | . . . . . . . 4 . . . . . Wheel 6 | . 1 . 2 . . 1 . . . 1 1 . Hover . | . . . . . . . . . . . . . Flight . | . . . . . . . . . . . . . Utility 40 | 2 4 . 4 1 5 1 4 5 . 6 2 6 Device 16 | 1 2 . 2 . 1 1 1 4 . 2 . 2 Storage 4 | 1 2 . . . . . . . . . . 1 Processor 2 | . . . . . . . 1 . . . . 1 Hackware 3 | . . . . . 2 . . . . . . 1 Protection 15 | . . . 2 1 2 . 2 1 . 4 2 1 Artifact . | . . . . . . . . . . . . . Weapon 44 | 3 2 2 13 . 3 . 2 3 . 9 5 2 Energy Gun 5 | 1 . . 3 . . . . . . 1 . . Energy Cannon 5 | . . 2 1 . . . . . . . . 2 Ballistic Gun 25 | 2 1 . 6 . 2 . 2 3 . 7 2 . Ballistic Cannon 1 | . . . 1 . . . . . . . . . Launcher 5 | . 1 . 2 . . . . . . . 2 . Special Weapon 2 | . . . . . . . . . . 1 1 . Impact Weapon . | . . . . . . . . . . . . . Slashing Weapon . | . . . . . . . . . . . . . Piercing Weapon . | . . . . . . . . . . . . . Special Melee Weapon 1 | . . . . . 1 . . . . . . . Unidentified Prototypes 6 | . . . 3 . . . . . . . 3 . Parts Lost 29 | . 2 . 2 . 12 1 . 5 . 4 . 3 Power 3 | . 1 . . . 1 . . . . 1 . . Propulsion 10 | . . . 2 . 5 1 . 1 . . . 1 Utility 10 | . 1 . . . 3 . . 2 . 2 . 2 Weapon 6 | . . . . . 3 . . 2 . 1 . . Highest Loss Streak 7 | . 1 . 2 . 7 1 . 2 . 2 . 1 To Critical Strikes 6 | . . . . . 6 . . . . . . . Average Backups 16 | 3 12 19 19 20 14 16 16 15 16 15 16 15 Power . | . 1 . 1 1 . . . . . . . . Propulsion 4 | 1 3 6 7 7 3 3 4 5 4 3 2 1 Utility 5 | . 2 3 3 5 4 7 6 5 5 5 8 7 Weapon 4 | . 4 9 6 5 3 3 3 3 5 4 3 3 Tool/Special . | . . . . . . . . . . . . . Unused Backups 41 | . 3 1 8 . 6 . 6 2 . 1 1 13 Power 4 | . . . 1 . 3 . . . . . . . Propulsion 6 | . 1 1 2 . . . . . . . . 2 Utility 20 | . . . 1 . 3 . 5 1 . 1 . 9 Weapon 10 | . 2 . 4 . . . 1 1 . . 1 1 Tool/Special 1 | . . . . . . . . . . . . 1 Average Slot Usage (%) 98 | . 99 100 99 100 98 99 98 99 100 99 95 95 Engine 9 | . 13 14 11 11 10 11 9 7 . 6 9 9 Treads 22 | . 25 14 26 33 32 27 6 12 18 19 14 15 Leg 1 | . . . . . . . 17 12 . . . . Wheel 5 | . 2 14 5 . . 5 3 2 9 7 12 11 Device 12 | . 13 14 10 10 8 11 17 18 18 17 9 14 Storage 10 | . 14 14 11 11 8 11 9 9 9 9 9 9 Protection 5 | . . . . . 4 . 7 9 9 9 14 7 Ballistic Gun 27 | . 27 25 21 32 31 33 27 26 27 25 26 26 Peak Build Rating 56 | 7 9 9 19 18 30 34 55 56 47 47 45 49 Average Rating 28 | 5 7 9 16 17 21 28 44 47 42 38 38 45 On Entrance 26 | . 7 9 9 17 17 30 28 54 47 42 40 45 Avg Prop Armor Cover (%) 11 | . 13 12 12 . . 16 13 3 12 11 9 13 Naked Turns . | . . . . . . . . . . . . . Heaviest Build 92 | 11 49 52 60 58 60 58 65 66 67 67 91 92 Greatest Support 75 | 40 40 16 60 60 69 69 75 75 43 62 40 22 Greatest Overweight (x) 7 | . 3 3 3 . . 4 5 1 5 5 7 7 Average Overweight (x) 1 | . . 3 . . . 2 1 . 4 3 4 5 Largest Inventory Capacity 20 | 8 20 20 20 20 20 20 20 20 20 20 20 20 Average Capacity 18 | 7 14 20 20 20 17 20 20 20 20 20 20 20 Most Carried 20 | 7 20 20 20 20 20 20 20 20 20 20 20 20 Average Carried 18 | 4 12 19 19 19 16 19 19 19 20 19 19 19 Final Capacity 20 | 8 20 20 20 20 20 20 20 20 20 20 20 20 Final Carried 20 | 7 20 20 20 20 20 20 20 20 20 20 20 20 Class Distribution -------------------- 35% | Scavenger-Tank 22% | Scavenger-Gunner 16% | Mutant 12% | Gunner 6% | Bothacker-Tank 3% | Tank Dominant Class ---------------- Mutant | -10/Materials Mutant | -10/Mines Scavenger-Gunner | -9/Materials Scavenger-Gunner | -9/Mines Scavenger-Gunner | -9/Exiles Gunner | -8/Mines Scavenger-Tank | -8/Materials Scavenger-Tank | -8/Garrison Scavenger-Tank | -8/Materials Scavenger-Tank | -8/Garrison Scavenger-Tank | -8/Materials Bothacker-Tank | -8/Garrison Resources | -11 -10 -10 -9 -9 -9 -8 -8 -8 -8 -8 -8 -8 ----------- Run | Yrd Mat Min Mat Min Exi Min Mat Gar Mat Gar Mat Gar Matter Collected 8150 | 290 527 294 728 228 946 318 302 1227 139 1355 546 1250 Remotely 188 | . 188 . . . . . . . . . . . Salvage Created 8040 | 87 617 205 1311 294 408 299 274 1008 139 1495 524 1379 Parts 498 | 7 39 9 71 20 53 28 18 62 5 84 34 68 Haulers Intercepted 8 | . 2 . 3 . . . . . . . 3 . Recyclers Shooed 1 | . . . 1 . . . . . . . . . Parts Field Recycled . | . . . . . . . . . . . . . Retrieved Matter . | . . . . . . . . . . . . . Parts Self-Destructed . | . . . . . . . . . . . . . Prevented . | . . . . . . . . . . . . . Parts Restored . | . . . . . . . . . . . . . Kills | -11 -10 -10 -9 -9 -9 -8 -8 -8 -8 -8 -8 -8 ------- Run | Yrd Mat Min Mat Min Exi Min Mat Gar Mat Gar Mat Gar Combat Hostiles Destroyed 184 | . 18 8 21 9 8 11 6 34 3 39 3 24 Guns 152 | . 15 4 8 7 8 11 6 26 3 39 3 22 Cannons 12 | . . 4 8 . . . . . . . . . AOE 20 | . 3 . 5 2 . . . 8 . . . 2 Classes Destroyed 17 | 2 5 1 2 . 2 2 . . . 1 2 . Worker 5 | . 1 . 2 1 . . . . . . 1 . Builder 1 | . . . . . . . . . . . 1 . Tunneler 2 | 1 . . . . . 1 . . . . . . Hauler 8 | . 2 . 3 . . . . . . . 3 . Recycler 9 | 1 . 1 5 . . . . . . . 2 . Operator 1 | . . . . . . . . . . . 1 . Turret 1 | . . . . . 1 . . . . . . . Watcher 1 | . 1 . . . . . . . . . . . Swarmer 50 | . 9 . 3 3 . 7 . 17 . 11 . . Grunt 67 | . 9 2 9 6 . 2 3 14 2 14 . 6 Brawler 4 | . . . 1 . . . . . . . . 3 Duelist 4 | . . . . . . 1 . . . 1 . 2 Sentry 29 | . . . 8 . . . 1 3 1 8 3 5 Hunter 7 | . . . . . . 1 2 . . 2 . 2 Programmer 9 | . . . . . . . . . . 3 . 6 Zionite 6 | . . . . . 6 . . . . . . . Assembled 13 | . . 6 . . 7 . . . . . . . Best Kill Streak 12 | 2 5 5 12 4 7 4 2 6 2 6 1 4 Combat Bots Only 7 | . 4 5 5 3 7 4 2 6 2 6 1 4 Max Kills in Single Turn 4 | 1 3 1 3 3 1 1 1 4 1 2 1 2 Gunslinging 1 | . . . . 1 . . . 1 . . . . Exploded 4 | . 2 . 3 2 . . . 4 . . . 2 Melee . | . . . . . . . . . . . . . Uniques/NPCs Destroyed 4 | . . . . . 4 . . . . . . . 8R-AWN (-9/Exiles) EX-BIN (-9/Exiles) EX-DEC (-9/Exiles) EX-HEX (-9/Exiles) Combat | -11 -10 -10 -9 -9 -9 -8 -8 -8 -8 -8 -8 -8 -------- Run | Yrd Mat Min Mat Min Exi Min Mat Gar Mat Gar Mat Gar Hostile Shots Fired 777 | . 73 20 70 13 97 35 50 115 11 152 9 132 Missed 203 | . 20 4 16 5 17 6 10 31 7 47 5 35 Hits 574 | . 53 16 54 8 80 29 40 84 4 105 4 97 Melee 10 | . . 1 . . 3 . . . . 3 . 3 Projectile 564 | . 53 15 54 8 77 29 40 84 4 102 4 94 Critical Strikes 40 | . 1 . 3 . 22 . . 6 . 5 . 3 Actively Blocked 1 | . . . . . . . . . . 1 . . Part Disruptions 1 | . . 1 . . . . . . . . . . Damage Taken 8268 | . 556 235 734 89 1629 344 569 1181 64 1424 73 1370 Core 961 | . 137 59 74 . 106 35 94 178 . 167 . 111 Absorbed by Shields 100 | . . . . . . . . . . . . 100 Redirected to Shielding 9 | . . . . . . . . . . 9 . . Regen/Repaired (Parts) 170 | . 170 . . . . . . . . . . . Core Remaining (%) 55 | 100 . 21 . . . 46 . . . . . . Volleys Fired 644 | 5 70 21 59 10 77 27 28 99 6 115 27 100 Largest 3 | 2 2 2 3 3 3 3 3 3 3 3 3 3 Hottest 147 | 40 40 120 147 69 69 69 76 76 83 126 90 90 Shots Fired 1570 | 10 140 42 166 27 199 77 84 204 18 276 72 255 Gun 1451 | 10 137 20 113 26 185 77 84 199 18 262 71 249 Cannon 73 | . . 22 50 . . . . . . . . 1 Launcher 29 | . 3 . 3 1 14 . . 5 . . 1 2 Special 17 | . . . . . . . . . . 14 . 3 Kinetic 1421 | 10 137 20 97 26 185 77 84 199 18 248 71 249 Thermal 102 | . . 22 66 . . . . . . 14 . . Explosive 29 | . 3 . 3 1 14 . . 5 . . 1 2 Electromagnetic 1 | . . . . . . . . . . . . 1 Robot Hit Streak 20 | 8 10 5 11 18 11 6 10 11 5 19 20 16 Robot Miss Streak 5 | 1 4 2 4 1 3 3 2 5 2 4 4 4 Penetration Max 1 | . . . . . . . . 1 . 1 . 1 Secondary Targets 23 | . 1 . . 1 4 1 1 7 . 5 . 3 Max Gunslinging Chain 1 | . 1 . . 1 1 1 1 1 . 1 . 1 Shots Hit Robots 981 | 8 95 26 111 20 128 43 55 116 11 166 42 160 Core Hits 426 | 4 38 16 47 15 52 19 16 65 7 66 22 59 Critical Kills 3 | . 1 . . . . . . . . . . 2 Critical Parts Destroyed 10 | . . . . . . . . 3 . 2 1 4 Critical Strikes 15 | . 1 . 1 . . . . 3 . 2 1 7 Burn 1 | . . . 1 . . . . . . . . . Destroy 14 | . 1 . . . . . . 3 . 2 1 7 Melee Attacks 4 | . . . . . 4 . . . . . . . Impact . | . . . . . . . . . . . . . Slashing . | . . . . . . . . . . . . . Piercing . | . . . . . . . . . . . . . Sneak Attacks 4 | . . . . . 4 . . . . . . . Combat Hostiles . | . . . . . . . . . . . . . Follow-up Attacks . | . . . . . . . . . . . . . Damage Inflicted 19103 | 66 1066 373 2255 390 2377 631 848 2795 219 3198 1123 3762 Guns 16027 | 66 881 126 1118 281 1934 631 848 2248 219 3198 997 3480 Cannons 942 | . . 247 695 . . . . . . . . . Explosions 2134 | . 185 . 442 109 443 . . 547 . . 126 282 Melee . | . . . . . . . . . . . . . Ramming . | . . . . . . . . . . . . . Kinetic 15714 | 66 881 126 916 281 1934 631 848 2248 219 3087 997 3480 Thermal 1255 | . . 247 897 . . . . . . 111 . . Explosive 2134 | . 185 . 442 109 443 . . 547 . . 126 282 Electromagnetic . | . . . . . . . . . . . . . Impact . | . . . . . . . . . . . . . Slashing . | . . . . . . . . . . . . . Piercing . | . . . . . . . . . . . . . Highest Corruption 7 | . 4 4 . . . . . . . 1 1 7 Average Corruption 3 | . 3 4 . . . . . . . 1 1 5 Corruption Purged . | . . . . . . . . . . . . . Corruption Blocked . | . . . . . . . . . . . . . Effects 114 | . 28 18 . . . . . . . 11 10 47 Message Errors 21 | . 2 1 . . . . . . . 6 1 11 Matter Fused 28 | . 10 4 . . . . . . . 1 4 9 Heat Flow Errors 12 | . 3 3 . . . . . . . 2 2 2 Energy Discharges 15 | . 5 2 . . . . . . . 1 . 7 Parts Rejected 2 | . 2 . . . . . . . . . . . Parts Fused 1 | . . . . . . . . . . . . 1 Data Loss (minor) 13 | . 3 3 . . . . . . . . 1 6 Data Loss (major) 4 | . . 1 . . . . . . . . 1 2 Misfires 8 | . 3 1 . . . . . . . 1 1 2 Alerts 4 | . . 2 . . . . . . . . . 2 Weapon Failures 6 | . . 1 . . . . . . . . . 5 Overload Shots . | . . . . . . . . . . . . . Overflow Damage 34 | . 5 . 7 . 18 . . 4 . . . . Projectiles . | . . . . . . . . . . . . . Explosions 34 | . 5 . 7 . 18 . . 4 . . . . Melee . | . . . . . . . . . . . . . Knockbacks . | . . . . . . . . . . . . . Impact . | . . . . . . . . . . . . . Kinetic . | . . . . . . . . . . . . . Secondary . | . . . . . . . . . . . . . Self-Inflicted Damage 122 | . . . 30 . 10 . . 82 . . . . Shots 6 | . . . 2 . 1 . . 3 . . . . Rammed . | . . . . . . . . . . . . . Targets Rammed . | . . . . . . . . . . . . . Kicked . | . . . . . . . . . . . . . Crushed . | . . . . . . . . . . . . . Highest Temperature 259 | . 243 210 259 62 108 198 22 62 . 252 163 205 Average Temperature 53 | . 66 85 53 33 51 58 10 18 . 72 48 78 Received Heat Transfer 2102 | . 231 56 297 42 . 72 135 549 27 396 36 261 Effects 2 | . . . . . . . . . . . . 2 Interference 2 | . . . . . . . . . . . . 2 Siege Activations . | . . . . . . . . . . . . . Martial Activations . | . . . . . . . . . . . . . Shielding Activations . | . . . . . . . . . . . . . Robots Disrupted . | . . . . . . . . . . . . . Combat Hostiles . | . . . . . . . . . . . . . Robots Corrupted . | . . . . . . . . . . . . . Combat Hostiles . | . . . . . . . . . . . . . Parts Fried . | . . . . . . . . . . . . . Impact Corruptions . | . . . . . . . . . . . . . Robots Melted . | . . . . . . . . . . . . . Combat Hostiles . | . . . . . . . . . . . . . Parts Melted 4 | . . . 3 . . . . . . 1 . . Heat Transferred 2655 | . . 518 1887 . . . . . . 250 . . Parts Sabotaged . | . . . . . . . . . . . . . Parts Stolen . | . . . . . . . . . . . . . Parts Stripped . | . . . . . . . . . . . . . Power Chain Reactions . | . . . . . . . . . . . . . Alert | -11 -10 -10 -9 -9 -9 -8 -8 -8 -8 -8 -8 -8 ------- Run | Yrd Mat Min Mat Min Exi Min Mat Gar Mat Gar Mat Gar Maximum Alert Level 5 | . . . 1 . . . . 4 2 5 3 5 Low Security (%) 43 | 100 100 100 33 100 . 100 100 11 . . . . Level 1 7 | . . . 66 . . . . 10 . 1 . . Level 2 8 | . . . . . . . . 31 100 14 . 3 Level 3 22 | . . . . . . . . 39 . 32 100 25 Level 4 15 | . . . . . . . . 6 . 44 . 60 Level 5 2 | . . . . . . . . . . 6 . 9 High Security . | . . . . . . . . . . . . . Max Security . | . . . . . . . . . . . . . Peak Influence 1673 | 10 162 90 285 157 . 145 87 1247 607 1673 1089 1639 Initial 815 | . . 25 . 85 . . . 46 607 373 815 685 Average 544 | . 75 12 189 61 . 55 18 678 577 1094 941 1208 Influence Increases 6478 | 10 517 70 651 271 . 280 185 1251 87 1340 772 1044 Destroy 0b10 Robot/C 3780 | . 360 40 420 180 . 220 120 680 60 780 380 540 Destroy 0b10 Robot/NC 170 | 10 20 5 50 5 . 5 . 15 . . 50 10 Destroy Leader 538 | . 76 10 126 30 . 40 40 20 20 30 96 50 Allied During Kill 148 | . . . . . . . . . . . 132 16 Successful Hack 72 | . 29 . 6 . . . 8 . 5 14 10 . Disable Machine 285 | . . 15 30 45 . . . 60 . 45 75 15 Anti-Garrison Action 1050 | . . . . . . . . 350 . 400 . 300 Destroy Structure 225 | . 17 . 19 11 . . 2 51 2 26 29 68 Lose Combat Pursuer 210 | . 15 . . . . 15 15 75 . 45 . 45 Influence Decreases 4839 | 10 452 135 430 437 55 280 114 75 760 241 1390 460 Entered New Map 2325 | . . 40 . 136 55 . . 25 640 201 858 370 Time Decay 2204 | 10 432 95 410 301 . 270 114 . 120 . 452 . Lost Part 170 | . 20 . 20 . . 10 . 50 . 40 . 30 Lost Ally 140 | . . . . . . . . . . . 80 60 Squads Dispatched 7 | . 3 . 1 . . . 1 . . . 2 . Investigation 1 | . 1 . . . . . . . . . . . Extermination . | . . . . . . . . . . . . . Reinforcement 4 | . 2 . 1 . . . . . . . 1 . Assault 1 | . . . . . . . . . . . 1 . Garrison 1 | . . . . . . . 1 . . . . . Intercept . | . . . . . . . . . . . . . Searches Triggered . | . . . . . . . . . . . . . Construction Impeded . | . . . . . . . . . . . . . Haulers Reinforced . | . . . . . . . . . . . . . Active Scanning Responses . | . . . . . . . . . . . . . Cargo Convoy Interrupts . | . . . . . . . . . . . . . Stealth | -11 -10 -10 -9 -9 -9 -8 -8 -8 -8 -8 -8 -8 --------- Run | Yrd Mat Min Mat Min Exi Min Mat Gar Mat Gar Mat Gar Distress Signals 7 | . 1 . 3 . . . 2 . . . 1 . Communications Jammed . | . . . . . . . . . . . . . Distress Signals . | . . . . . . . . . . . . . Times Spotted 240 | . 24 9 29 9 22 12 11 33 3 39 21 28 Peak Tracking Total 9 | . 5 2 5 3 9 4 4 5 2 5 6 6 Tactical Retreats 14 | . 1 . . . 4 1 1 4 . 2 . 1 Traps | -11 -10 -10 -9 -9 -9 -8 -8 -8 -8 -8 -8 -8 ------- Run | Yrd Mat Min Mat Min Exi Min Mat Gar Mat Gar Mat Gar Traps Triggered 23 | . 3 . . . . . . 3 . 8 2 7 Indirectly . | . . . . . . . . . . . . . Trap Hack Attempts . | . . . . . . . . . . . . . Triggered . | . . . . . . . . . . . . . Disarmed . | . . . . . . . . . . . . . Reprogrammed . | . . . . . . . . . . . . . Reused . | . . . . . . . . . . . . . Traps Extracted . | . . . . . . . . . . . . . Installed . | . . . . . . . . . . . . . Triggered . | . . . . . . . . . . . . . Most Traps Carried 4 | . . . . . . . . 4 4 4 4 4 Machines | -11 -10 -10 -9 -9 -9 -8 -8 -8 -8 -8 -8 -8 ---------- Run | Yrd Mat Min Mat Min Exi Min Mat Gar Mat Gar Mat Gar Machines Disabled 41 | . . 1 2 3 9 . . 9 . 7 5 5 Max in Single Turn 1 | . . 1 1 1 1 . . 1 . 1 . 1 Garrison Relay 13 | . . . . . . . . 5 . 4 . 4 Machines Repaired . | . . . . . . . . . . . . . Machines Dismantled . | . . . . . . . . . . . . . Machines Sabotaged . | . . . . . . . . . . . . . Overloaded Fab Kills . | . . . . . . . . . . . . . Hacking | -11 -10 -10 -9 -9 -9 -8 -8 -8 -8 -8 -8 -8 --------- Run | Yrd Mat Min Mat Min Exi Min Mat Gar Mat Gar Mat Gar Machines Accessed 25 | . 5 . 1 . 2 . 3 2 3 2 6 1 Terminals 17 | . 4 . 1 . . . 2 2 2 2 3 1 Fabricators . | . . . . . . . . . . . . . Repair Stations 1 | . 1 . . . . . . . . . . . Recycling Units 1 | . . . . . . . . . . . 1 . Scanalyzers 1 | . . . . . . . . . . . 1 . Garrison Access 3 | . . . . . . . 1 . 1 . 1 . Total Hacks 40 | . 13 . 1 . 2 . 4 2 5 3 9 1 Successful 23 | . 9 . 1 . 2 . 3 . 3 1 4 . Failed 17 | . 4 . . . . . 1 2 2 2 5 1 Catastrophic 1 | . . . . . . . . 1 . . . . Database Lockouts . | . . . . . . . . . . . . . Manual 5 | . 1 . 1 . 1 . 1 . . . 1 . Terminals 25 | . 8 . 1 . . . 3 2 3 3 4 1 Fabricators . | . . . . . . . . . . . . . Repair Stations 5 | . 5 . . . . . . . . . . . Recycling Units 3 | . . . . . . . . . . . 3 . Scanalyzers 1 | . . . . . . . . . . . 1 . Garrison Access 4 | . . . . . . . 1 . 2 . 1 . Terminal Hacks 13 | . 5 . 1 . 2 . 1 . 2 1 1 . Record 1 | . . . . . 1 . . . . . . . Part Schematic 1 | . 1 . . . . . . . . . . . Branch Access Points 1 | . 1 . . . . . . . . . . . Locate Traps 1 | . . . . . . . 1 . . . . . Maintenance Status 1 | . 1 . . . . . . . . . . . Hauler Manifests 2 | . 1 . . . . . . . 1 . . . Registered Components 1 | . 1 . . . . . . . . . . . Zone Layout 3 | . . . 1 . . . . . 1 . 1 . Garrison Registry 1 | . . . . . . . . . . 1 . . Proto ID Catalog 1 | . . . . . 1 . . . . . . . Fabricator Hacks . | . . . . . . . . . . . . . Repair Station Hacks 4 | . 4 . . . . . . . . . . . Scan Component 2 | . 2 . . . . . . . . . . . Repair 2 | . 2 . . . . . . . . . . . Recycling Unit Hacks . | . . . . . . . . . . . . . Scanalyzer 1 | . . . . . . . . . . . 1 . Retrieve Study 1 | . . . . . . . . . . . 1 . Garrison Access Hacks 3 | . . . . . . . 1 . 1 . 1 . Unlock Access 3 | . . . . . . . 1 . 1 . 1 . Unauthorized Hacks 2 | . . . . . . . 1 . . . 1 . Terminals 2 | . . . . . . . 1 . . . 1 . Botnet 2 | . . . . . . . 1 . . . 1 . Fabricators . | . . . . . . . . . . . . . Repair Stations . | . . . . . . . . . . . . . Recycling Units . | . . . . . . . . . . . . . Scanalyzers . | . . . . . . . . . . . . . Garrison Access . | . . . . . . . . . . . . . Data Cores Recovered 1 | . . . . . . . . . . . 1 . Used . | . . . . . . . . . . . . . Hacking Detections 16 | . 4 . . . . . 3 2 2 2 2 1 Full Trace Events . | . . . . . . . . . . . . . Feedback Events . | . . . . . . . . . . . . . Feedback Blocked . | . . . . . . . . . . . . . Robot Schematics Acquired . | . . . . . . . . . . . . . Robots Built . | . . . . . . . . . . . . . Authchips . | . . . . . . . . . . . . . Time . | . . . . . . . . . . . . . Total Robot Build Rating . | . . . . . . . . . . . . . Part Schematics Acquired 1 | . 1 . . . . . . . . . . . Parts Built . | . . . . . . . . . . . . . Authchips . | . . . . . . . . . . . . . Time . | . . . . . . . . . . . . . Total Part Build Rating . | . . . . . . . . . . . . . Part Studies Acquired 1 | . . . . . . . . . . . 1 . Parts Repaired 2 | . 2 . . . . . . . . . . . Time 52 | . 52 . . . . . . . . . . . Parts Recycled . | . . . . . . . . . . . . . Recycled Matter . | . . . . . . . . . . . . . Retrieved Matter . | . . . . . . . . . . . . . Retrieved Components . | . . . . . . . . . . . . . Parts Scanalyzed . | . . . . . . . . . . . . . Part Schematics Acquired . | . . . . . . . . . . . . . Parts Damaged . | . . . . . . . . . . . . . Bothacking | -11 -10 -10 -9 -9 -9 -8 -8 -8 -8 -8 -8 -8 ------------ Run | Yrd Mat Min Mat Min Exi Min Mat Gar Mat Gar Mat Gar Used RIF Installer 2 | . . . . . . . . . . 2 . . Coupler Efficiency 1 | . . . . . . . . . . 1 . . Robots Hacked 6 | . . . . . 4 . . . . . . 2 Non-combat 3 | . . . . . 3 . . . . . . . Combat 3 | . . . . . 1 . . . . . . 2 Robot Hacks Applied 6 | . . . . . 4 . . . . . . 2 parse_system 4 | . . . . . 4 . . . . . . . formatsys_high 2 | . . . . . . . . . . . . 2 Relay Couplers Released 55 | . . . . . . . . 20 . 16 . 19 Machine Destruction 52 | . . . . . . . . 20 . 16 . 16 Programmers 3 | . . . . . . . . . . . . 3 Attached 1 | . . . . . . . . . . . . 1 Fabnet Peak Effective % . | . . . . . . . . . . . . . Robots Rewired 5 | . . . . . . . . . . 5 . . Allies Hacked . | . . . . . . . . . . . . . Hacks Repelled . | . . . . . . . . . . . . . Allies | -11 -10 -10 -9 -9 -9 -8 -8 -8 -8 -8 -8 -8 -------- Run | Yrd Mat Min Mat Min Exi Min Mat Gar Mat Gar Mat Gar Total Allies 7 | . . . . . . . . . . 5 . 2 Largest Group 5 | . . . . . . . . . . 5 5 2 Highest-Rated Group 122 | . . . . . . . . . . 122 122 32 Highest-Rated Ally 39 | . . . . . . . . . . 39 39 17 Initial Warlord ECA Mod 7 | . . . . . . . . . 7 7 . . Total Orders 28 | . . . . . . . . . . . 22 6 STAY 14 | . . . . . . . . . . . 11 3 FOLLOW 14 | . . . . . . . . . . . 11 3 Ally Attacks 94 | . . . . . . . . . . . 70 24 Total Damage 1579 | . . . . . . . . . . . 1161 418 Kills 21 | . . . . . . . . . . . 18 3 Allies Corrupted . | . . . . . . . . . . . . . Allies Melted 1 | . . . . . . . . . . . 1 . Turrets Deployed 2 | . . . . . . . . . . . . 2 Intel | -11 -10 -10 -9 -9 -9 -8 -8 -8 -8 -8 -8 -8 ------- Run | Yrd Mat Min Mat Min Exi Min Mat Gar Mat Gar Mat Gar Active Infowar (turns) 8933 | 58 1294 526 663 1130 1047 677 231 33 230 1351 1031 662 Seismic 8932 | 58 1294 526 663 1130 1047 677 231 32 230 1351 1031 662 Triangulation 1 | . . . . . . . . 1 . . . . Robot Analysis Total . | . . . . . . . . . . . . . Derelict Logs Recovered 3 | . . 1 . 2 . . . . . . . . Drone Launches . | . . . . . . . . . . . . . Drone Recoveries . | . . . . . . . . . . . . . Exploration | -11 -10 -10 -9 -9 -9 -8 -8 -8 -8 -8 -8 -8 ------------- Run | Yrd Mat Min Mat Min Exi Min Mat Gar Mat Gar Mat Gar Turns Passed 14073 | 110 1436 671 1086 1160 2390 791 424 1245 256 1935 1122 1447 Spaces Moved 7008 | 44 734 390 510 682 1267 390 213 601 135 807 613 622 Core 1 | 1 . . . . . . . . . . . . Treads 3629 | 43 586 . 350 682 1267 193 . 279 3 224 2 . Legs 459 | . . . . . . . 137 322 . . . . Wheels 2919 | . 148 390 160 . . 197 76 . 132 583 611 622 Hover . | . . . . . . . . . . . . . Flight . | . . . . . . . . . . . . . Fastest Speed 50 | 50 115 145 115 160 160 150 120 120 165 150 140 140 Average Speed 157 | 157 151 145 149 160 160 154 134 152 166 180 151 162 Slowest Speed 240 | 160 160 145 160 160 160 160 165 240 240 240 240 185 Overloaded Moves . | . . . . . . . . . . . . . Propulsion Burnouts . | . . . . . . . . . . . . . Robots Hopped . | . . . . . . . . . . . . . Potential Cave-ins . | . . . . . . . . . . . . . Cave-ins Triggered . | . . . . . . . . . . . . . Exploration Rate (%) 64 | 5 92 91 60 98 90 86 24 69 15 70 71 68 Regions Visited 12 Branch Regions 4 Pre-discovered Areas 2 | . . . . 1 1 . . . . . . . Known Exits Taken 4 | . 1 . . . . . 1 . 1 . 1 . Unknown Exits Taken 6 | 1 . 1 1 1 1 1 . . . . . . Scrap Searched 6 | . . . . 4 . 2 . . . . . . Spaces Dug 1 | . . . . . . . . . . . . 1 Terrain Destroyed 141 | . 19 . 17 11 2 . 1 16 1 9 14 51 Melee . | . . . . . . . . . . . . . Projectile 43 | . . . . . . . 1 . 1 8 12 21 AOE 94 | . 19 . 17 11 2 . . 16 . . 2 27 Terrain Rammed . | . . . . . . . . . . . . . Walls Destroyed . | . . . . . . . . . . . . . Machines Disabled . | . . . . . . . . . . . . . Actions | -11 -10 -10 -9 -9 -9 -8 -8 -8 -8 -8 -8 -8 --------- Run | Yrd Mat Min Mat Min Exi Min Mat Gar Mat Gar Mat Gar Total 8905 | 73 932 452 722 729 1497 534 311 809 150 1092 752 852 Wait 634 | 9 73 33 43 28 42 105 35 61 1 71 69 64 Move 6999 | 43 733 389 509 681 1266 389 213 600 135 806 613 622 Hop . | . . . . . . . . . . . . . Pick Up 145 | 8 23 1 24 2 51 2 6 9 . 6 5 8 Fast Attach 42 | 6 3 . 6 . 6 . 6 3 . 7 4 1 Attach 37 | 1 2 . 5 . 13 1 . 7 . 4 . 4 Detach 9 | . . . . . 5 . 2 1 . . . 1 Swap 179 | 1 20 7 40 6 6 9 10 16 7 21 20 16 Drop 136 | . 8 1 36 2 27 1 11 8 1 22 14 5 Fire 644 | 5 70 21 59 10 77 27 28 99 6 115 27 100 Melee 4 | . . . . . 4 . . . . . . . Ram . | . . . . . . . . . . . . . Kick . | . . . . . . . . . . . . . Crush . | . . . . . . . . . . . . . Escape Stasis 76 | . . . . . . . . 5 . 40 . 31 Rewire . | . . . . . . . . . . . . . Trap . | . . . . . . . . . . . . . Miscellaneous . | . . . . . . . . . . . . . Route ------- -11/Scrapyard -10/Materials (discovered 3 exits: *Mat x2 / *Min) -10/Mines -9/Materials (discovered 6 exits: *Mat x2 / [*Min x2] / *Sto x2) -9/Mines (discovered 3 exits: *Mat x2 / *Exi) -9/Exiles -8/Mines (discovered 2 exits: *Mat x2) -8/Materials -8/Garrison (discovered 3 exits: *Mat x3) -8/Materials -8/Garrison (discovered 3 exits: *Mat x3) -8/Materials (discovered 3 exits: [*Fac x2] / Gar) -8/Garrison (discovered 3 exits: [*Fac x3]) History --------- Turn | Location | Event 10 | -11/Scrapyard | Discovered new exit (range 16) 111 | -11/Scrapyard | Entered Materials 293 | -10/Materials | Discovered new exit (range 11) 306 | -10/Materials | Build established: Mutant 926 | -10/Materials | Discovered new exit (range 7) 941 | -10/Materials | Core integrity fell below 50% 1004 | -10/Materials | Identified exit to Mines 1378 | -10/Materials | Repaired Lgt. Treads 1404 | -10/Materials | Repaired Lgt. Treads 1547 | -10/Materials | Entered Mines 1871 | -10/Mines | Found a hidden stash of uninstalled traps 1978 | -10/Mines | Assembled infested the area 2186 | -10/Mines | Discovered new exit (range 6) 2218 | -10/Mines | Entered Materials 2218 | -9/Materials | Evolved 2 slots: Propulsion x1, Weapon x1 2219 | -9/Materials | Identified exit to Storage 2746 | -9/Materials | Discovered new exit (range 16) 2792 | -9/Materials | Build established: Scavenger-Gunner 3071 | -9/Materials | Discovered new exit (range 7) 3178 | -9/Materials | Discovered new exit (range 5) 3207 | -9/Materials | Discovered exit to Storage (range 12) 3276 | -9/Materials | Discovered new exit (range 14) 3304 | -9/Materials | Entered Mines 3306 | -9/Mines | Met a Derelict bent on vengeance 3330 | -9/Mines | Learned Materials stockpile data 3391 | -9/Mines | Learned location of Storage (-9) 3446 | -9/Mines | Deemed a non-threat by the Exiles lab entrance 3446 | -9/Mines | Discovered new exit (range 5) 3710 | -9/Mines | Learned 2 Materials zone layouts 3969 | -9/Mines | Discovered new exit (range 9) 3977 | -9/Mines | Discovered new exit (range 16) 3984 | -9/Mines | Received a Rocket Launcher from a helpful Derelict 4464 | -9/Mines | Entered Exiles 4504 | -9/Exiles | Met 8R-AWN 4532 | -9/Exiles | Met EX-HEX 4605 | -9/Exiles | Met EX-DEC 4641 | -9/Exiles | Visited The Gauntlet 4728 | -9/Exiles | Learned location of Zion (-6) 4895 | -9/Exiles | Met EX-BIN 4915 | -9/Exiles | Aligned with FarCom system 4916 | -9/Exiles | Given EX-Vault access code 4955 | -9/Exiles | Opened EX-Vault 4966 | -9/Exiles | Found Deploy-a-Sentry 4968 | -9/Exiles | Found Deploy-a-Sentry 4973 | -9/Exiles | Found Deploy-a-Sentry 4977 | -9/Exiles | Found Field Lobotomy Kit 4983 | -9/Exiles | Found Latent Energy Streamer 5016 | -9/Exiles | Warned to stay clear of 0b10 Research branches 5764 | -9/Exiles | Attacked by the Exiles 5811 | -9/Exiles | Build established: Scavenger-Tank 5847 | -9/Exiles | Destroyed 7 combat bots 5924 | -9/Exiles | Destroyed 8R-AWN 5932 | -9/Exiles | Found AS-neutralizer No. 17b 5942 | -9/Exiles | Found Exp. Targeting Computer 5949 | -9/Exiles | Lost 7 parts (1p3n1u2w) 6135 | -9/Exiles | Lost 4 parts (2n1u1w) 6168 | -9/Exiles | Discovered new exit (range 14) 6271 | -9/Exiles | Destroyed EX-BIN 6410 | -9/Exiles | Build established: Gunner 6419 | -9/Exiles | Destroyed EX-DEC 6429 | -9/Exiles | Found System Purifier 6460 | -9/Exiles | Found Deploy-a-Sentry 6481 | -9/Exiles | Destroyed EX-HEX 6854 | -9/Exiles | Stole three prototypes: Latent Energy Streamer, Field Lobotomy Kit, Deploy-a-Sentry 6854 | -9/Exiles | Entered Mines 6959 | -8/Mines | Discovered new exit (range 5) 7071 | -8/Mines | Core integrity fell below 50% 7500 | -8/Mines | Discovered new exit (range 5) 7645 | -8/Mines | Entered Materials 7645 | -8/Materials | Evolved 2 slots: Utility x2 7995 | -8/Materials | Garrison activated, responded to threat 8069 | -8/Materials | Identified exit to Garrison 8069 | -8/Materials | Entered Garrison 8079 | -8/Garrison | Build established: Scavenger-Tank 8097 | -8/Garrison | Triggered checkpoint 8148 | -8/Garrison | Garrison Relay disabled 8212 | -8/Garrison | Triggered checkpoint 8224 | -8/Garrison | Triggered checkpoint 8234 | -8/Garrison | Triggered checkpoint 8396 | -8/Garrison | Discovered new exit (range 10) 8419 | -8/Garrison | Triggered checkpoint 8440 | -8/Garrison | Garrison Relay disabled 8729 | -8/Garrison | Triggered checkpoint 8760 | -8/Garrison | Garrison Relay disabled 8787 | -8/Garrison | Discovered new exit (range 11) 8863 | -8/Garrison | Triggered checkpoint 8933 | -8/Garrison | Triggered checkpoint 9070 | -8/Garrison | Garrison Relay disabled 9227 | -8/Garrison | Garrison Relay disabled 9284 | -8/Garrison | Discovered new exit (range 10) 9314 | -8/Garrison | Entered Materials 9570 | -8/Materials | Identified exit to Garrison 9570 | -8/Materials | Entered Garrison 9590 | -8/Garrison | Triggered checkpoint 9656 | -8/Garrison | Garrison Relay disabled 9707 | -8/Garrison | Core integrity fell below 50% 9860 | -8/Garrison | Triggered checkpoint 9974 | -8/Garrison | Discovered new exit (range 10) 10008 | -8/Garrison | Triggered checkpoint 10078 | -8/Garrison | Garrison Relay disabled 10208 | -8/Garrison | Triggered checkpoint 10328 | -8/Garrison | Discovered new exit (range 8) 10360 | -8/Garrison | Triggered checkpoint 10405 | -8/Garrison | Garrison Relay disabled 10478 | -8/Garrison | Triggered checkpoint 10670 | -8/Garrison | Discovered new exit (range 69) 10670 | -8/Garrison | Discovered new exit (range 33) 10670 | -8/Garrison | Discovered new exit (range 38) 10728 | -8/Garrison | Triggered checkpoint 10773 | -8/Garrison | Installed Relay Interface Framework 10846 | -8/Garrison | Triggered checkpoint 10971 | -8/Garrison | Expanded RIF knowledge: Coupler Efficiency 11047 | -8/Garrison | Garrison Relay disabled 11120 | -8/Garrison | Triggered checkpoint 11127 | -8/Garrison | Triggered checkpoint 11505 | -8/Garrison | Entered Materials 11505 | -8/Materials | Accompanied by 5 allies 12008 | -8/Materials | Met 7R-MNS 12119 | -8/Materials | Discovered new exit (range 16) 12305 | -8/Materials | First assault squad dispatched 12438 | -8/Materials | Discovered new exit (range 13) 12627 | -8/Materials | Identified exit to Garrison 12627 | -8/Materials | Entered Garrison 12627 | -8/Garrison | Accompanied by 1 ally 12632 | -8/Garrison | Triggered checkpoint 12688 | -8/Garrison | P-60 Hacker assimilated allied Commando 3b 12912 | -8/Garrison | Garrison Relay disabled 12913 | -8/Garrison | Triggered checkpoint 12971 | -8/Garrison | Triggered checkpoint 13141 | -8/Garrison | Core integrity fell below 20% 13225 | -8/Garrison | Discovered new exit (range 10) 13233 | -8/Garrison | Build established: Bothacker-Tank 13421 | -8/Garrison | Triggered checkpoint 13509 | -8/Garrison | Garrison Relay disabled 13547 | -8/Garrison | Discovered new exit (range 14) 13598 | -8/Garrison | Triggered checkpoint 13769 | -8/Garrison | Triggered checkpoint 13845 | -8/Garrison | Triggered checkpoint 13871 | -8/Garrison | DAS Turret deployed 13881 | -8/Garrison | DAS Turret deployed 13936 | -8/Garrison | Garrison Relay disabled 14021 | -8/Garrison | Discovered new exit (range 15) 14074 | -8/Garrison | Destroyed by Y-45 Defender with Heavy Assault Rifle Last Messages --------------- 13936_ Relay Coupler [Sentry] tumbles out of relay unit. 13936_ Relay Coupler [Swarmer] tumbles out of relay unit. 13936_ Relay Coupler [NC] tumbles out of relay unit. 13939_ System corrupted: FCS attempts to trigger Coil Gun. 13939_ System corrupted: Coil Gun misfires. 13943_ Acquired Relay Coupler [Sentry]. 13957_ Acquired Relay Coupler [NC]. 13977_ Acquired 36 matter. 13988_ System corrupted: Matter fused (-9). 14008_ =XZ|UJOW#DD/8MULPZJT 14021_ EXIT=FOUND 14024_ Acquired 2 matter. 14038_ Detecting nearby RIF Installer. 14039_ ENGZQ|OMDRPQOD,W|0DEIMWQ1ZZ7S|L|U&DD#YW 14072_ Triggered Alarm Trap. 14072_ An alarm sounds. Map ----- +----------------------------------------------------+ | | | | | | | | | | | | | | | | | | | | | | | | | | | | | | | | | | | | | ???????????????????????????????????????????????? | | ???????????????????????????????????????????????? | | ???????????????????????#####???????????????????? | | ???????????????????????#"""#???????????????????? | | ???????????????????????#" "#???????????????????? | | ???????????????????????#" "#???????????????????? | | ?????????????????????###" "###?????????????????? | | ?????????????????????# Y @ Y #?????????????????? | | ???????????#######???#### ####?????????????????? | | ???????????# ########;#????????????????????? | | ???????????# < + #????????????????????? | | ???????????# ######## #????????????????????? | | ???????????# ###??????# #????????????????????? | | ???????????# #????????# #????????????????????? | | ???????????# #???????? ????????????????????? | | ???????????# #???????? ????????????????????? | | ?????####??# #???????? ????????????????????? | | ????? #??# #???????? ????????????????????? | | ????? ???# #???????? ????????????????????? | | ???### ???# #???????? ????????????????????? | | ???# ???# #???????# ???????????????????? | | ???? ???# #???????# ???????????????????? | | ????? #???# #???????# ???????????????????? | | ?????# #???# !#######??# ##???????????????????? | | ?????# ##### =* #??? ?????????????????????? | | ?????# ; [%!#??? ?????????????????????? | | ?????# ##### #### #?????????????????????????? | | ?????# #???# #??# ###???????????????????????? | | ?????# #???# #??# #???????????????????????? | | ?????# #???# #??# #???????????????????????? | | ?????# #???# t #??# #???????????????????????? | | ?????# #???# #### ###???????????????????????? | +----------------------------------------------------+ Best States ------------- Heat Dissipation 76 Energy Generation 18 Energy Capacity 310 Matter Stores 343 Matter Capacity 400 Sight Range 16 Terrain Scan Density 10 Armor Coverage 600 Core Shielding 20 Weapon Cycling 25 Evasion (%) 55 Targeting Accuracy 12 Recoil Reduction 3 Salvage Targeting 1 Relay Coupler Types 1 Relay Coupler Value 9 Trap Extractor Capacity 4 Item Schematics ----------------- Huge Storage Unit | -10/Materials | Hacked Robot Schematics ------------------ None Fabricated ------------ Nothing Repaired ---------- Lgt. Treads | 30% | -10/Materials Lgt. Treads | 48% | -10/Materials Studied --------- Arm. Wheel | -8/Materials | Hacked Alien Tech Used ----------------- None Achievements -------------- None Challenges ------------ None Game ------ Seed GuidedFocalNanoactuators Manual? 0 Play Time 02:15:47 Cumulative 527.4 hours Start 2026.05.02 @ 11:33:33 End 2026.05.02 @ 19:27:59 Sessions 9 Manual Loads 0 Difficulty Rogue Special Mode None Game No. 93 Rogue 93 Adventurer 0 Explorer 0 Win Type - Total 20 Types 7/1/5/1/1/0/1/2/1/1 Lore% 85 Gallery% 80 Achievement% 75 Wizard Run 0 Options --------- Layout 1 ASCII 0 Keyboard 1 Movement Vi Keybinds 1 Fullscreen 1 Font 36/Tamsyn Map View 50x40 Zoom Use 0% Tactical HUD 1 Map Filters NONE Filters NONE Steam 1 RUN: 2e5e1137-a01d-4832-8011-ff9a96d51868